bitfinex/quotes_SOLUSD_20260208
["timestamp","ask_amount","ask_price","bid_price","bid_amount"]
[1770589150524,0.50666787,87.108,87.09,10.86449785]
[1770589153817,0.50666787,87.108,87.083,11.48322569]
[1770589154016,0.50666787,87.106,87.071,11.48488015]
[1770589154997,0.54270357,87.099,87.047,0.5370936]
[1770589155217,0.54270357,87.089,87.058,11.48646374]
[1770589155625,0.54270357,87.089,87.06,10.86449785]
[1770589155829,0.54270357,87.089,87.07,10.86449785]
[1770589156321,0.54270357,87.089,87.07,22.34946123]
[1770589157611,0.50435924,87.099,87.08,10.86449785]
[1770589159409,0.50435924,87.099,87.081,11.48356128]
[1770589159630,0.50435924,87.099,87.071,0.52743025]
[1770589160009,0.50435924,87.097,87.071,11.48486526]
[1770589160209,0.50435924,87.097,87.075,11.48430832]
[1770589160526,0.50435924,87.095,87.06,10.86449785]
[1770589160833,0.50435924,87.095,87.064,11.48576857]
[1770589164133,0.50435924,87.095,87.07,10.86449785]
[1770589165216,0.50435924,87.093,87.07,10.86449785]
[1770589169824,0.50435924,87.089,87.041,0.52743025]
[1770589170018,0.50435924,87.089,87.05,10.86449785]
[1770589170539,0.50435924,87.089,87.053,11.48721408]
[1770589171733,10.86449785,87.08,87.045,11.48827968]
[1770589171919,0.50435924,87.079,87.044,11.48838627]
[1770589172121,0.50435924,87.095,87.07,10.86449785]
[1770589172322,0.50435924,87.095,87.08,10.86449785]
[1770589173018,0.50435924,87.095,87.08,10.86075227]
[1770589175154,0.50435924,87.093,87.061,11.48610936]
[1770589175447,0.50435924,87.087,87.06,10.86075227]
[1770589176944,0.50435924,87.085,87.06,10.86075227]
[1770589182634,0.50435924,87.103,87.07,10.86075227]
[1770589185549,0.49809232,87.099,87.06,10.86075227]
[1770589185752,0.49809232,87.099,87.08,10.86075227]
[1770589188936,11.48131989,87.098,87.08,10.86075227]
[1770589189458,0.49809232,87.099,87.08,10.86075227]
[1770589194562,0.49809232,87.097,87.07,10.86075227]
[1770589194864,11.48131989,87.098,87.06,4.05725475]
[1770589194865,0.49809232,87.089,87.06,4.05725475]
[1770589195050,0.49809232,87.089,87.06,4.58441939]
[1770589196054,0.49809232,87.087,87.06,4.58441939]
[1770589196762,0.49809232,87.087,87.07,4.05725475]
[1770589197654,0.49809232,87.087,87.06,4.58441939]
[1770589198042,0.49809232,87.085,87.06,4.58441939]
[1770589199365,0.49809232,87.083,87.06,4.05725475]
[1770589200478,0.49809232,87.081,87.05,15.54478492]
[1770589201565,0.49809232,87.099,87.071,0.52716464]
[1770589201770,0.49809232,87.099,87.08,4.05725475]
[1770589201963,0.49809232,87.098,87.07,4.05725475]
[1770589202175,0.49809232,87.106,87.081,0.52716464]
[1770589202548,0.49809232,87.106,87.08,4.05725475]
[1770589203375,0.49809232,87.106,87.08,4.58441939]
[1770589204476,0.49809232,87.106,87.081,11.48356128]
[1770589205077,0.49809232,87.106,87.08,4.58441939]
[1770589207980,0.49809232,87.099,87.07,4.05725475]
[1770589208158,0.49809232,87.099,87.071,11.48485967]
[1770589208558,0.49809232,87.099,87.07,4.05725475]
[1770589209489,0.49809232,87.097,87.07,4.05725475]
[1770589210275,0.49809232,87.097,87.044,10.2]
[1770589210276,0.49809232,87.089,87.055,11.48697068]
[1770589210779,0.72100001,87.115,87.052,0.52716464]
[1770589211076,0.72100001,87.115,87.05,4.05725475]
[1770589211077,0.49809232,87.113,87.09,4.05725475]
[1770589211578,0.49809232,87.113,87.1,4.05725475]
[1770589212666,5.13032502,87.146,87.1,4.05725475]
[1770589212667,0.49809232,87.147,87.102,0.52716464]
[1770589212972,0.49809232,87.147,87.101,11.48092444]
[1770589212973,0.49809232,87.147,87.13,4.05725475]
[1770589213479,28.68113442,87.166,87.14,4.58441939]
[1770589213480,0.49809232,87.166,87.14,4.58441939]
[1770589213658,0.49809232,87.166,87.15,4.05725475]
[1770589213861,0.49809232,87.166,87.14,4.58441939]
[1770589214069,0.49809232,87.166,87.15,4.05725475]
[1770589215087,0.49809232,87.166,87.15,10.84399915]
[1770589216281,0.1,87.18,87.161,0.54176058]
[1770589216482,0.1,87.18,87.17,10.84399915]
[1770589217670,0.53583279,87.179,87.16,10.84399915]
[1770589218290,0.53583279,87.179,87.15,22.31838412]
[1770589218666,0.53583279,87.179,87.16,10.84399915]
[1770589220765,0.53583279,87.169,87.14,10.84399915]
[1770589221087,0.53583279,87.159,87.13,10.84399915]
[1770589221272,0.53583279,87.159,87.107,28.70027578]
[1770589221273,0.53583279,87.159,87.131,0.54176058]
[1770589222483,0.53583279,87.149,87.11,10.84399915]
[1770589223568,0.53583279,87.147,87.11,10.84399915]
[1770589224689,0.53583279,87.145,87.11,10.84399915]
[1770589225069,0.53583279,87.145,87.111,0.54176058]
[1770589225694,0.53583279,87.155,87.111,0.54176058]
[1770589225895,0.53583279,87.159,87.113,0.54176058]
[1770589226100,0.53583279,87.159,87.12,10.84399915]
[1770589226271,0.53583279,87.149,87.11,10.84399915]
[1770589226472,10.84399915,87.14,87.106,0.54176058]
[1770589226694,0.53583279,87.139,87.106,0.54176058]
[1770589227189,0.53583279,87.139,87.111,0.54176058]
[1770589227597,0.03583279,87.139,87.111,0.54176058]
[1770589227986,0.03583279,87.139,87.11,22.32367086]
[1770589227987,0.03583279,87.139,87.12,10.84399915]
[1770589228683,11.4745407,87.15,87.121,0.54176058]
[1770589228997,22.31853985,87.15,87.121,0.54176058]
[1770589229185,22.31853985,87.15,87.114,0.54176058]
[1770589229699,0.53583279,87.149,87.114,0.54176058]
[1770589230694,0.53583279,87.149,87.107,0.54176058]
[1770589230900,0.53583279,87.132,87.101,0.54176058]
[1770589231382,10.84399915,87.13,87.101,0.54176058]
[1770589231583,10.84399915,87.13,87.102,0.54176058]
[1770589231783,0.53583279,87.146,87.112,0.54176058]
[1770589235003,0.53583279,87.144,87.112,0.54176058]
[1770589235804,0.53583279,87.144,87.114,0.54176058]
[1770589237802,11.47396335,87.154,87.089,10.2]
[1770589237803,0.53583279,87.139,87.107,11.4801236]
[1770589238004,0.53583279,87.139,87.089,10.2]
[1770589238005,0.53583279,87.119,87.091,0.54176058]
[1770589238384,0.53583279,87.126,87.096,0.54176058]
[1770589239987,0.53583279,87.119,87.088,0.54176058]
[1770589240185,0.53583279,87.109,87.081,0.54176058]
[1770589240683,4.58738079,87.1,87.081,0.54176058]
[1770589240882,4.58738079,87.1,87.074,11.48436885]
[1770589240883,0.53583279,87.099,87.074,0.54176058]
[1770589241497,0.53583279,87.089,87.066,0.54176058]
[1770589243212,0.53583279,87.099,87.066,0.54176058]
[1770589243911,28.69881913,87.112,87.056,28.71699557]
[1770589243912,4.051548,87.11,87.081,0.54176058]
[1770589244109,11.47956033,87.112,87.081,0.54176058]
[1770589244414,0.53583279,87.119,87.081,0.54176058]
[1770589245400,0.54305082,87.118,87.083,0.49330845]
[1770589245598,4.051548,87.11,87.083,0.49330845]
[1770589245795,0.54305082,87.099,87.071,0.49330845]
[1770589247210,11.47855232,87.119,87.071,0.49330845]
[1770589247211,4.051548,87.09,87.071,0.49330845]
[1770589247516,0.54305082,87.089,87.063,0.49330845]
[1770589248789,0.54305082,87.096,87.065,0.49330845]
[1770589250413,15.53262445,87.1,87.065,0.49330845]
[1770589250716,15.53262445,87.1,87.067,0.49330845]
[1770589251110,15.53262445,87.1,87.07,4.051548]
[1770589251414,15.53262445,87.1,87.071,0.49330845]
[1770589252002,11.48107645,87.1,87.071,0.49330845]
[1770589252206,0.54305082,87.103,87.073,0.49330845]
[1770589254305,0.54305082,87.099,87.066,0.49330845]
[1770589254619,4.59459882,87.09,87.066,0.49330845]
[1770589258324,0.54305082,87.089,87.066,0.49330845]
[1770589258724,0.54305082,87.089,87.06,0.49330845]
[1770589259019,0.54305082,87.079,87.054,0.49330845]
[1770589259202,0.54305082,87.069,87.042,11.48868153]
[1770589259403,0.54305082,87.069,87.043,0.49330845]
[1770589259706,0.54305082,87.079,87.043,11.48853322]
[1770589259921,0.54305082,87.069,87.043,11.98184167]
[1770589260134,0.54305082,87.069,87.044,0.49330845]
[1770589260925,0.54305082,87.067,87.031,0.49330845]
[1770589262418,0.54305082,87.067,87.032,0.49330845]
[1770589264927,0.54305082,87.067,87.034,0.49330845]
[1770589265931,0.54305082,87.067,87.033,11.48989463]
[1770589265932,0.54305082,87.091,87.051,0.49330845]
[1770589266109,0.54305082,87.089,87.051,0.49330845]
[1770589267032,0.54305082,87.089,87.061,0.49330845]
[1770589271328,0.54305082,87.087,87.061,0.49330845]
[1770589272606,0.54305082,87.087,87.051,10.2]
[1770589272819,0.54305082,87.079,87.052,0.49330845]
[1770589273710,4.59459882,87.07,87.052,0.49330845]
[1770589273928,0.54305082,87.07,87.052,0.49330845]
[1770589274925,0.54305082,87.07,87.032,10.2]
[1770589274926,0.54305082,87.069,87.035,0.49330845]
[1770589275125,0.50330455,87.059,87.035,0.49330845]
[1770589278738,0.52215062,87.058,87.026,0.54772939]
[1770589279727,0.52215062,87.046,87.024,0.54772939]
[1770589279915,4.051548,87.05,87.024,0.54772939]
[1770589280439,0.52215062,87.049,87.024,0.54772939]
[1770589281219,4.051548,87.07,87.031,0.54772939]
[1770589281521,0.52215062,87.069,87.031,0.54772939]
[1770589281722,0.52215062,87.059,87.031,0.54772939]
[1770589285634,15.53664244,87.07,87.033,0.54772939]
[1770589285839,0.52215062,87.069,87.033,0.54772939]
[1770589287140,0.52215062,87.059,87.033,0.54772939]
[1770589288345,0.52215062,87.058,87.033,0.54772939]
[1770589289938,0.52215062,87.039,87.011,0.54772939]
[1770589290127,0.52215062,87.039,87.016,0.54772939]
[1770589292729,11.48664174,87.058,87.026,0.54772939]
[1770589292931,0.52215062,87.057,87.026,0.54772939]
[1770589296643,0.52215062,87.057,87.028,0.54772939]
[1770589298552,0.52215062,87.049,87.022,0.54772939]
[1770589298743,0.52215062,87.049,87.023,74.27193481]
[1770589298933,0.52215062,87.049,87.024,0.54772939]
[1770589300042,0.52215062,87.049,87.025,0.54772939]
[1770589304453,0.52215062,87.039,87.023,73.72420542]
[1770589309256,0.54791969,87.037,87.023,72.2197405]
[1770589309445,0.54791969,87.029,87.023,72.2197405]
[1770589312250,0.54791969,87.027,87.0,0.52384334]
[1770589312638,0.54791969,87.027,87.001,0.52384334]
[1770589312840,4.05978775,87.03,87.005,0.52384334]
[1770589317259,0.54791969,87.029,87.005,0.52384334]
[1770589320954,0.54791969,87.009,86.977,0.52384334]
[1770589321154,0.54791969,87.009,86.981,0.52384334]
[1770589321844,40.21694166,87.028,86.97,0.2]
[1770589321845,0.54791969,86.999,86.97,0.2]
[1770589322044,4.05978775,86.99,86.971,0.57154178]
[1770589322243,4.05978775,87.0,86.973,0.57154178]
[1770589322549,4.05978775,86.99,86.973,0.57154178]
[1770589323634,7.45366324,87.021,86.97,0.2]
[1770589323839,4.05978775,86.98,86.96,0.57154178]
[1770589324938,4.05978775,87.0,86.96,0.57154178]
[1770589325140,4.05978775,86.97,86.96,0.57154178]
[1770589325760,4.05978775,86.98,86.96,0.57154178]
[1770589326958,28.73596248,86.999,86.937,28.75629725]
[1770589326959,4.05978775,86.97,86.945,0.57154178]
[1770589327254,11.49702801,86.979,86.945,0.57154178]
[1770589327558,11.49702801,86.979,86.949,0.57154178]
[1770589328657,11.49702801,86.979,86.93,0.2]
[1770589328658,7.41043407,87.019,86.971,0.52384334]
[1770589328861,7.41043407,87.019,86.96,4.05978775]
[1770589328862,7.41043407,87.019,87.001,0.52384334]
[1770589329055,11.48910258,87.039,87.011,0.52384334]
[1770589329245,0.54791969,87.038,87.011,0.52384334]
[1770589331263,7.96781048,87.038,87.011,0.52384334]
[1770589331457,7.96781048,87.038,87.02,4.05978775]
[1770589331458,7.41989079,87.038,87.02,4.05978775]
[1770589331660,7.41989079,87.038,87.021,0.52384334]
[1770589333067,0.58026272,87.029,86.96,4.05978775]
[1770589333246,0.58026272,87.029,86.904,46.02773392]
[1770589333247,0.58026272,87.017,86.978,11.49708063]
[1770589333437,0.58026272,87.009,86.978,11.49708063]
[1770589333643,0.58026272,87.009,86.981,11.49676366]
[1770589333838,0.58026272,87.009,86.973,11.49773082]
[1770589334260,0.58026272,86.999,86.963,11.49902527]
[1770589334646,0.58026272,86.997,86.963,11.49902527]
[1770589335743,0.58026272,86.997,86.97,4.05978775]
[1770589335944,0.72100001,86.998,86.97,4.05978775]
[1770589337148,0.58026272,86.997,86.97,4.05978775]
[1770589337967,0.58026272,86.997,86.96,4.05978775]
[1770589339361,0.58026272,86.996,86.965,11.49883042]
[1770589342365,4.05978775,86.98,86.934,5.13032502]
[1770589342568,57.23648383,87.084,86.93,0.2]
[1770589342569,0.58026272,86.979,86.94,4.05978775]
[1770589343770,0.58026272,86.979,86.93,0.2]
[1770589343771,0.58026272,86.959,86.93,0.2]
[1770589344343,0.58026272,86.959,86.934,11.50286629]
[1770589345250,5.31322217,86.958,86.934,11.50286629]
[1770589345650,0.58026272,86.957,86.93,0.2]
[1770589345864,0.58026272,86.956,86.93,0.2]
[1770589346046,0.58026272,86.955,86.93,0.2]
[1770589346246,0.58026272,86.953,86.93,0.2]
[1770589346468,0.58026272,86.952,86.93,0.2]
[1770589346649,0.58026272,86.951,86.93,0.2]
[1770589346844,0.58026272,86.95,86.93,0.2]
[1770589347051,0.58026272,86.949,86.92,15.56452341]
[1770589347262,0.58026272,86.948,86.92,15.56452341]
[1770589347565,1.9380958,86.948,86.92,4.05978775]
[1770589347760,1.9380958,86.948,86.921,11.50469966]
[1770589348667,0.58026272,86.947,86.921,11.50469966]
[1770589348965,0.58026272,86.946,86.921,11.50469966]
[1770589349165,1.9380958,86.946,86.93,4.05978775]
[1770589349344,1.27190755,86.945,86.94,4.05978775]
[1770589349550,1.27190755,86.945,86.93,4.05978775]
[1770589350758,1.27190755,86.945,86.931,11.50337624]
[1770589351270,0.58026272,86.969,86.94,4.05978775]
[1770589351579,0.58026272,86.978,86.95,4.05978775]
[1770589351874,0.72100001,86.979,86.96,4.05978775]
[1770589354261,0.72100001,86.979,86.961,11.49940778]
[1770589356863,0.72100001,86.979,86.96,4.06476483]
[1770589358075,0.72100001,86.979,86.961,11.49940778]
[1770589360077,11.4948073,86.996,86.981,11.49676366]
[1770589360078,7.39634348,86.995,86.981,11.49676366]
[1770589360491,7.3967199,87.015,86.99,4.06476483]
[1770589360667,7.3967199,87.015,87.0,4.06476483]
[1770589361884,0.58026272,87.014,87.0,4.06476483]
[1770589362082,0.58026272,87.014,86.99,4.06476483]
[1770589363685,0.58026272,87.014,86.991,11.49544205]
[1770589365290,7.3967199,87.015,87.0,4.06476483]
[1770589365886,7.3967199,87.015,87.001,11.49412075]
[1770589366098,7.3967199,87.015,87.01,4.06476483]
[1770589368469,7.4401204,87.026,87.011,11.49279976]
[1770589368679,0.58026272,87.036,87.02,4.06476483]
[1770589368879,0.58026272,87.036,87.011,11.49279976]
[1770589371679,0.58026272,87.036,87.02,4.06476483]
[1770589372075,0.58026272,87.036,87.01,4.06476483]
[1770589373794,0.58026272,87.036,87.011,11.49279976]
[1770589377487,0.58026272,87.036,87.01,4.06476483]
[1770589380080,0.58026272,87.036,87.011,11.49279976]
[1770589381154,1.30126273,87.042,87.03,4.06476483]
[1770589384022,0.58026272,87.066,87.03,15.5549801]
[1770589384194,0.58026272,87.065,87.04,4.06476483]
[1770589385296,0.58026272,87.065,87.041,11.48883859]
[1770589387217,7.49625773,87.066,87.05,4.06476483]
[1770589387400,7.49625773,87.066,87.06,4.06476483]
[1770589390720,0.58026272,87.064,87.04,4.06476483]
[1770589391226,7.49625773,87.066,87.05,4.06476483]
[1770589391402,0.58026272,87.072,87.06,4.06476483]
[1770589399324,0.58026272,87.072,87.05,15.55238173]
[1770589400008,0.58026272,87.072,87.05,47.85238173]
[1770589400214,0.58026272,87.072,87.054,11.4871028]
[1770589403114,0.58026272,87.072,87.06,4.06476483]
[1770589406334,0.58026272,87.072,87.053,11.48713048]
[1770589409046,0.58026272,87.072,87.05,36.36476483]
[1770589409047,0.58026272,87.072,87.05,32.3]
[1770589409246,0.58026272,87.072,87.051,11.48751881]
[1770589410928,7.45615706,87.08,87.06,4.06476483]
[1770589411145,0.58026272,87.079,87.06,4.06476483]
[1770589411735,7.45615706,87.08,87.07,4.06476483]
[1770589412741,7.45615706,87.08,87.067,11.48532822]
[1770589413119,7.45615706,87.08,87.061,11.48619933]
[1770589414853,7.45615706,87.08,87.07,4.06476483]
[1770589415430,0.58026272,87.085,87.071,11.48488015]
[1770589416237,0.58026272,87.1,87.071,11.48488015]
[1770589416440,0.58026272,87.1,87.08,4.06476483]
[1770589416939,0.58026272,87.1,87.071,11.48488015]
[1770589418822,0.58026272,87.1,87.08,4.05417102]
[1770589419835,0.58026272,87.1,87.081,11.48356128]
[1770589420240,0.58026272,87.099,87.05,4.05417102]
[1770589420536,0.58026272,87.089,87.06,4.05417102]
[1770589420738,0.58026272,87.089,87.071,11.48487261]
[1770589420938,0.58026272,87.089,87.075,11.48434708]
[1770589421837,0.58026272,87.104,87.08,4.05417102]
[1770589422740,0.58026272,87.104,87.09,4.05417102]
[1770589424842,0.58026272,87.104,87.091,11.48224271]
[1770589426937,0.58026272,87.104,87.081,11.48356128]
[1770589429937,4.15417102,87.12,87.09,4.05417102]
[1770589429938,0.58026272,87.119,87.09,4.05417102]
[1770589430134,0.58026272,87.118,87.09,4.05417102]
[1770589431028,0.58026272,87.118,87.081,11.48356128]
[1770589431925,0.58026272,87.116,87.09,4.05417102]
[1770589433926,0.58026272,87.116,87.1,4.05417102]
[1770589434327,0.58026272,87.116,87.094,11.48183783]
[1770589435527,0.58026272,87.116,87.089,11.48237916]
[1770589435728,0.58026272,87.116,87.092,11.4819854]
[1770589438866,0.58026272,87.114,87.083,11.48322525]
[1770589439162,0.58026272,87.109,87.083,11.48322525]
[1770589439563,0.58026272,87.109,87.09,4.05417102]
[1770589439762,0.58026272,87.109,87.091,11.48224271]
[1770589439963,0.1,87.12,87.1,4.05417102]
[1770589440166,0.1,87.12,87.11,4.05417102]
[1770589440558,0.58026272,87.119,87.091,40.18784948]
[1770589440859,0.58026272,87.119,87.1,4.05417102]
[1770589441059,0.1,87.12,87.1,4.05417102]
[1770589441262,0.1,87.12,87.11,4.05417102]
[1770589441753,7.39095352,87.129,87.11,4.05417102]
[1770589441950,0.07853084,120.61,87.12,4.05417102]
[1770589441951,0.58026272,87.143,87.12,4.05417102]
[1770589442765,0.58026272,87.165,87.131,11.47697145]
[1770589442955,0.58026272,87.165,87.14,4.05417102]
[1770589443968,0.58026272,87.165,87.141,11.47565439]
[1770589445979,4.05417102,87.16,87.121,11.47828881]
[1770589446171,0.58026272,87.159,87.121,11.47828881]
[1770589446375,0.58026272,87.149,87.121,11.47828881]
[1770589447256,0.58026272,87.149,87.12,4.05417102]
[1770589448270,0.58026272,87.149,87.12,15.53254565]
[1770589449760,0.58026272,87.147,87.12,4.05417102]
[1770589449964,0.5029249,87.129,87.101,0.52339371]
[1770589450358,0.5029249,87.139,87.106,0.52339371]
[1770589450950,0.5029249,87.139,87.11,4.57756473]
[1770589451675,0.5029249,87.139,87.11,0.52339371]
[1770589452963,0.5029249,87.137,87.11,0.52339371]
[1770589454670,0.5029249,87.129,87.099,0.52339371]
[1770589454871,0.51853155,87.117,87.092,0.52339371]
[1770589459981,0.50294535,87.123,87.101,0.49505183]
[1770589460365,7.33788362,87.127,87.101,0.49505183]
[1770589462063,7.84082897,87.127,87.102,0.49505183]
[1770589462258,0.50294535,87.126,87.102,0.49505183]
[1770589462463,0.50294535,87.126,87.101,11.48088076]
[1770589463281,0.50294535,87.126,87.101,11.97593259]
[1770589463985,0.50294535,87.126,87.09,4.05417102]
[1770589464281,0.50294535,87.126,87.091,0.49505183]
[1770589464779,0.50294535,87.124,87.091,0.49505183]
[1770589465188,0.50294535,87.115,87.091,0.49505183]
[1770589465576,0.50294535,87.121,87.1,4.05417102]
[1770589465767,0.50294535,87.121,87.101,0.49505183]
[1770589467488,0.50294535,87.119,87.091,0.49505183]
[1770589468398,0.50294535,87.119,87.084,0.49505183]
[1770589469069,0.50294535,87.117,87.084,0.49505183]
[1770589469875,0.50294535,87.117,87.091,0.49505183]
[1770589473977,0.50294535,87.117,87.092,0.49505183]
[1770589478688,0.50294535,87.117,87.094,0.49505183]
[1770589478889,0.72100001,87.121,87.095,11.48171536]
[1770589479200,1.22394536,87.121,87.096,0.49505183]
[1770589481301,0.50294535,87.119,87.09,15.53538714]
[1770589481597,0.50294535,87.119,87.087,8.19812453]
[1770589481805,0.50294535,87.119,87.088,0.49505183]
[1770589483200,0.50294535,87.119,87.087,8.19812453]
[1770589483389,0.50294535,87.108,87.087,8.19812453]
[1770589483584,0.50294535,87.108,87.078,11.48385777]
[1770589483904,0.50294535,87.108,87.071,19.68287644]
[1770589484085,0.50294535,87.108,87.071,11.48475191]
[1770589484287,0.50294535,87.099,87.066,11.48546132]
[1770589484487,0.50294535,87.089,87.063,0.49505183]
[1770589487902,11.48219915,87.092,87.065,0.49495005]
[1770589488096,0.46901411,87.095,87.071,0.49495005]
[1770589488905,0.46901411,87.095,87.064,11.48580354]
[1770589489705,0.46901411,87.095,87.065,0.49495005]
[1770589489901,0.46901411,87.095,87.066,11.4855397]
[1770589490089,0.46901411,87.095,87.071,0.49495005]
[1770589491387,11.95075479,87.095,87.071,0.49495005]
[1770589491606,0.46901411,87.094,87.071,0.49495005]
[1770589492008,0.46901411,87.094,87.071,11.9797429]
[1770589494416,0.46901411,87.094,87.071,0.49495005]
[1770589495109,0.46901411,87.094,87.073,0.49495005]
[1770589496812,0.46901411,87.101,87.081,0.49495005]
[1770589497607,12.20171581,87.103,87.081,0.49495005]
[1770589497822,0.72100001,87.103,87.081,0.49495005]
[1770589498705,1.19001412,87.103,87.081,0.49495005]
[1770589498903,0.46901411,87.102,87.081,0.49495005]
[1770589499305,0.46901411,87.101,87.075,0.49495005]
[1770589500822,0.46901411,87.099,87.069,11.98001796]
[1770589501010,0.46901411,87.099,87.07,0.49495005]
[1770589502326,0.46901411,87.099,87.071,0.49495005]
[1770589502496,11.94980674,87.102,87.081,0.49495005]
[1770589502697,0.46901411,87.101,87.073,0.49495005]
[1770589502914,0.46901411,87.101,87.068,0.49495005]
[1770589504422,0.46901411,87.101,87.073,0.49495005]
[1770589505001,0.46901411,87.101,87.075,0.49495005]
[1770589505423,0.46901411,87.1,87.075,0.49495005]
[1770589506923,0.72100001,87.103,87.081,0.49495005]
[1770589507503,0.72100001,87.103,87.083,0.49495005]
[1770589508825,0.72100001,87.103,87.082,11.48342941]
[1770589508826,0.72100001,87.103,87.091,0.49495005]
[1770589510823,0.46901411,87.109,87.091,0.49495005]
[1770589511200,0.46901411,87.109,87.074,0.49495005]
[1770589511406,0.46901411,87.099,87.069,11.98002357]
[1770589511607,0.46901411,87.089,87.059,11.48639467]
[1770589511807,0.46901411,87.089,87.052,0.49495005]
[1770589512003,0.46901411,87.079,87.052,0.49495005]
[1770589512710,0.46901411,87.079,87.048,11.4878729]
[1770589512711,0.46901411,87.079,87.042,0.49495005]
[1770589512912,4.05312002,87.08,87.03,28.72551157]
[1770589512913,0.46901411,87.059,87.031,0.49495005]
[1770589513118,0.46901411,87.059,87.034,11.98462291]
[1770589513327,0.46901411,87.059,87.035,0.49495005]
[1770589513922,0.46901411,87.059,87.025,0.49495005]
[1770589514135,0.46901411,87.056,87.027,0.49495005]
[1770589514635,0.46901411,87.056,87.02,4.05312002]
[1770589514636,0.46901411,87.049,87.02,11.49159306]
[1770589515014,0.46901411,87.049,87.015,11.95211818]
[1770589515213,0.50030512,87.039,87.015,0.45991106]
[1770589516235,0.46369337,87.029,87.01,0.2]
[1770589516811,0.46369337,87.029,87.011,11.49273928]
[1770589517230,0.46369337,87.029,87.01,0.2]
[1770589517619,0.46369337,87.035,87.012,0.46639499]
[1770589524730,0.46369337,87.035,87.01,0.2]
[1770589524923,0.46369337,87.035,87.0,0.2]
[1770589524924,0.46369337,87.019,87.0,0.2]
[1770589527033,7.48206715,87.039,87.011,0.50838112]
[1770589528518,4.05312002,87.03,87.005,0.50838112]
[1770589529721,11.49042273,87.029,87.005,0.50838112]
[1770589537044,4.06204216,87.03,87.005,0.50838112]
[1770589538634,7.42065651,87.034,87.005,0.50838112]
[1770589539741,11.48989463,87.033,87.005,0.50838112]
[1770589541347,11.49042273,87.029,87.0,0.2]
[1770589541529,40.21647956,87.029,87.0,1e-08]
[1770589541722,40.21647956,87.029,87.001,0.50838112]
[1770589542347,47.63074715,87.029,87.001,0.50838112]
[1770589542847,4.06204216,87.02,87.0,1e-08]
[1770589543547,4.06204216,87.01,87.0,1e-08]
[1770589545027,11.49306393,87.009,87.0,1e-08]
[1770589546228,4.06204216,87.01,87.0,1e-08]
[1770589546533,11.4925369,87.013,87.0,1e-08]
[1770589551744,11.49106699,87.025,87.001,0.50838112]
[1770589553562,4.06204216,87.02,87.0,1e-08]
[1770589553863,11.49174318,87.019,87.0,1e-08]
[1770589554767,4.06204216,87.01,87.0,1e-08]
[1770589555170,11.49174318,87.019,87.0,1e-08]
[1770589563362,7.38720382,87.026,87.001,0.50838112]
[1770589565652,7.38720382,87.026,87.003,0.50838112]
[1770589568969,4.06204216,87.02,87.0,1e-08]
[1770589570165,4.06204216,87.01,87.0,1e-08]
[1770589571765,11.49306393,87.009,87.0,1e-08]
[1770589573356,28.72737719,87.025,87.0,1e-08]
[1770589573357,4.06204216,87.02,87.0,1e-08]
[1770589576768,11.49164756,87.02,87.0,1e-08]
[1770589577659,7.38720382,87.026,87.001,0.50838112]
[1770589579371,7.38720382,87.026,87.003,0.50838112]
[1770589579672,7.38720382,87.026,87.011,0.47495935]
[1770589579673,3.85709848,87.026,87.011,0.47495935]
[1770589582378,3.85709848,87.026,87.011,11.4926687]
[1770589583172,0.50246904,87.044,87.02,4.06204216]
[1770589586279,0.50246904,87.029,87.0,1e-08]
[1770589586466,0.50246904,87.019,87.0,1e-08]
[1770589588364,0.50246904,87.019,86.981,11.49676366]
[1770589588567,4.06204216,87.04,86.981,11.49676366]
[1770589588568,0.50246904,87.009,86.981,11.49676366]
[1770589593567,0.50246904,86.999,86.98,0.2]
[1770589598289,28.73117825,87.014,86.98,0.2]
[1770589598290,7.91744565,87.002,86.981,11.49676366]
[1770589598475,0.50246904,87.001,86.981,11.49676366]
[1770589599086,0.50246904,86.999,86.981,11.49676366]
[1770589600904,7.41497661,87.002,86.981,11.49676366]
[1770589601674,0.50246904,87.001,86.981,11.49676366]
[1770589607598,7.41497661,87.002,86.98,0.2]
[1770589607599,0.50246904,86.999,86.98,0.2]
[1770589611401,0.47246429,86.997,86.97,11.69813679]
[1770589612300,0.47246429,86.997,86.97,11.89905698]
[1770589612496,0.47246429,86.997,86.972,11.49795336]
[1770589618206,0.47246429,86.989,86.97,0.2]
[1770589621028,0.47246429,86.979,86.951,8.19812453]
[1770589621332,0.47246429,86.969,86.943,0.20034168]
[1770589621512,0.47246429,86.969,86.943,11.70210954]
[1770589622412,0.47246429,86.969,86.943,11.50176786]
[1770589622592,0.47246429,86.968,86.943,11.50176786]
[1770589623099,0.47246429,86.959,86.938,11.50239594]
[1770589624102,0.47246429,86.959,86.932,28.75799768]
[1770589624292,0.47246429,86.964,86.933,0.40016184]
[1770589625811,0.72100001,86.975,86.951,0.40004535]
[1770589626197,0.47246429,86.974,86.953,0.40004535]
[1770589626916,0.47246429,86.974,86.952,11.50059803]
[1770589627299,0.47246429,86.974,86.948,11.90111522]
[1770589628716,0.6934643,86.975,86.949,0.46584992]
[1770589629415,0.6934643,86.975,86.951,0.46584992]
[1770589630695,0.47246429,86.974,86.951,0.46584992]